[Event "Rapid della Domenica"]
[Site "Chess.com"]
[Date "2020.06.14"]
[Round "3"]
[White "pedrak"]
[Black "mr6701"]
[Result "0-1"]
[WhiteElo "1709"]
[BlackElo "1874"]
[TimeControl "720+3"]
[EndTime "7:00:20 PDT"]
[Termination "mr6701 ha vinto per abbandono"]

1. d4 {[%clk 0:12:02.9]} 1... d5 {[%clk 0:11:29.7]} 2. Nf3 {[%clk 0:12:02.7]}
2... e6 {[%clk 0:11:31.2]} 3. e3 {[%clk 0:11:56.3]} 3... Nf6 {[%clk 0:11:31.3]}
4. Bd3 {[%clk 0:11:56.8]} 4... Be7 {[%clk 0:11:25.8]} 5. Nbd2 {[%clk 0:11:57.7]}
5... O-O {[%clk 0:11:27]} 6. O-O {[%clk 0:11:58.5]} 6... c5 {[%clk 0:11:28.7]}
7. c3 {[%clk 0:11:59.7]} 7... Nc6 {[%clk 0:11:27.4]} 8. Qe2 {[%clk 0:12:00.1]}
8... a6 {[%clk 0:11:21.8]} 9. dxc5 {[%clk 0:11:56.9]} 9... Bxc5 {[%clk
0:11:23.1]} 10. e4 {[%clk 0:11:58]} 10... dxe4 {[%clk 0:11:13.5]} 11. Nxe4
{[%clk 0:11:58.2]} 11... Nxe4 {[%clk 0:11:03.6]} 12. Qxe4 {[%clk 0:11:54.3]}
12... g6 {[%clk 0:11:05.5]} 13. Bh6 {[%clk 0:11:50.2]} 13... Re8 {[%clk
0:11:04.6]} 14. Rad1 {[%clk 0:11:51.2]} 14... Qd5 {[%clk 0:11:04.2]} 15. Qe2
{[%clk 0:11:43.7]} 15... Qh5 {[%clk 0:10:37.1]} 16. Be3 {[%clk 0:11:28.9]} 16...
Bf8 {[%clk 0:10:30.2]} 17. Nd4 {[%clk 0:11:21.8]} 17... Qxe2 {[%clk 0:10:16.2]}
18. Bxe2 {[%clk 0:11:21.7]} 18... Nxd4 {[%clk 0:10:09.6]} 19. Bxd4 {[%clk
0:11:22.7]} 19... Bg7 {[%clk 0:10:12.2]} 20. Bxg7 {[%clk 0:11:18.8]} 20... Kxg7
{[%clk 0:10:13.7]} 21. Bf3 {[%clk 0:11:20.6]} 21... e5 {[%clk 0:10:11.5]} 22.
Rfe1 {[%clk 0:11:10]} 22... f5 {[%clk 0:10:10.9]} 23. Bd5 {[%clk 0:10:55.2]}
23... Rb8 {[%clk 0:10:01.7]} 24. c4 {[%clk 0:10:25.7]} 24... Kf6 {[%clk
0:09:58.4]} 25. b4 {[%clk 0:10:22.6]} 25... Be6 {[%clk 0:09:52]} 26. Bxe6 {[%clk
0:10:22.1]} 26... Kxe6 {[%clk 0:09:45.6]} 27. c5 {[%clk 0:10:23.2]} 27... Red8
{[%clk 0:09:47.3]} 28. Kf1 {[%clk 0:10:19.2]} 28... Rd5 {[%clk 0:09:40.3]} 29.
Rxd5 {[%clk 0:10:14.4]} 29... Kxd5 {[%clk 0:09:42.5]} 30. Rd1+ {[%clk
0:10:15.3]} 30... Kc4 {[%clk 0:09:40.1]} 31. a3 {[%clk 0:10:10.7]} 31... Kb3
{[%clk 0:09:42]} 32. Rd3+ {[%clk 0:10:11]} 32... Kb2 {[%clk 0:09:41.9]} 33. f3
{[%clk 0:10:09.3]} 33... e4 {[%clk 0:09:41.1]} 34. fxe4 {[%clk 0:10:10.5]} 34...
fxe4 {[%clk 0:09:44]} 35. Re3 {[%clk 0:10:11.9]} 35... Rd8 {[%clk 0:09:41.5]}
36. Rxe4 {[%clk 0:10:05.7]} 36... Kxa3 {[%clk 0:09:43.2]} 37. Ke2 {[%clk
0:10:04]} 37... Kb3 {[%clk 0:09:23.5]} 38. Rh4 {[%clk 0:09:16.5]} 38... h5
{[%clk 0:09:20.4]} 39. Re4 {[%clk 0:08:59.2]} 39... Kc3 {[%clk 0:09:13.2]} 40.
Re6 {[%clk 0:06:56.6]} 40... Kxb4 {[%clk 0:09:08.7]} 41. Rxg6 {[%clk 0:06:57.5]}
41... Kxc5 {[%clk 0:09:08.9]} 42. Rg5+ {[%clk 0:06:59.2]} 42... Rd5 {[%clk
0:09:03.4]} 43. Rg7 {[%clk 0:05:41.6]} 43... b5 {[%clk 0:09:01]} 44. g4 {[%clk
0:05:42.1]} 44... hxg4 {[%clk 0:08:57]} 45. Rxg4 {[%clk 0:05:43.6]} 45... b4
{[%clk 0:08:59]} 46. h4 {[%clk 0:05:41.8]} 46... a5 {[%clk 0:08:55.9]} 47. Rg5
{[%clk 0:05:30.2]} 47... Rxg5 {[%clk 0:08:55]} 48. hxg5 {[%clk 0:05:31.9]} 48...
Kd5 {[%clk 0:08:57.5]} 49. Kf3 {[%clk 0:05:28.2]} 49... b3 {[%clk 0:08:41.9]}
50. g6 {[%clk 0:05:26.2]} 50... Ke6 {[%clk 0:08:40.2]} 51. Kg4 {[%clk
0:05:27.3]} 51... Kf6 {[%clk 0:08:39.5]} 52. Kh5 {[%clk 0:05:28.7]} 52... Kg7
{[%clk 0:08:40.9]} 0-1

[Event "Rapid della Domenica"]
[Site "Chess.com"]
[Date "2020.06.14"]
[Round "3"]
[White "fausto2p"]
[Black "riccardocanossa"]
[Result "1-0"]
[WhiteElo "1262"]
[BlackElo "1438"]
[TimeControl "720+3"]
[EndTime "7:00:29 PDT"]
[Termination "fausto2p ha vinto per abbandono"]

1. d4 {[%clk 0:12:02.9]} 1... Nf6 {[%clk 0:11:49.1]} 2. c4 {[%clk 0:12:02.9]}
2... g6 {[%clk 0:11:47.8]} 3. Nc3 {[%clk 0:12:03.6]} 3... Bg7 {[%clk 0:11:46.6]}
4. e4 {[%clk 0:12:03.9]} 4... d6 {[%clk 0:11:47.6]} 5. f3 {[%clk 0:12:00.1]}
5... O-O {[%clk 0:11:41.5]} 6. Be3 {[%clk 0:11:59.5]} 6... e5 {[%clk 0:11:41]}
7. d5 {[%clk 0:12:00.1]} 7... Nbd7 {[%clk 0:11:21.9]} 8. g4 {[%clk 0:11:56.9]}
8... Nc5 {[%clk 0:11:01]} 9. b3 {[%clk 0:11:35.2]} 9... h5 {[%clk 0:10:47]} 10.
gxh5 {[%clk 0:11:21.3]} 10... gxh5 {[%clk 0:10:44]} 11. h4 {[%clk 0:11:11.1]}
11... Nh7 {[%clk 0:08:31.4]} 12. Bh3 {[%clk 0:09:21.6]} 12... f5 {[%clk
0:08:19.2]} 13. exf5 {[%clk 0:09:10]} 13... Bxf5 {[%clk 0:08:15.4]} 14. Bxf5
{[%clk 0:09:09.9]} 14... Rxf5 {[%clk 0:08:13.2]} 15. Qc2 {[%clk 0:08:50.7]}
15... Qf6 {[%clk 0:07:55.8]} 16. O-O-O {[%clk 0:08:17.1]} 16... Rf8 {[%clk
0:07:20.8]} 17. Nb5 {[%clk 0:07:23.8]} 17... Qf7 {[%clk 0:05:45]} 18. Nxa7
{[%clk 0:07:02.5]} 18... Ra8 {[%clk 0:05:26]} 19. Nb5 {[%clk 0:07:02.8]} 19...
Na6 {[%clk 0:05:20.1]} 20. Bd2 {[%clk 0:06:24.8]} 20... Nf6 {[%clk 0:04:46.5]}
21. Qxf5 {[%clk 0:06:18.5]} 1-0

[Event "Rapid della Domenica"]
[Site "Chess.com"]
[Date "2020.06.14"]
[Round "3"]
[White "Mrtre7"]
[Black "ottovolante"]
[Result "1-0"]
[WhiteElo "1475"]
[BlackElo "998"]
[TimeControl "720+3"]
[EndTime "7:04:50 PDT"]
[Termination "Mrtre7 ha vinto per abbandono"]

1. d4 {[%clk 0:12:02.9]} 1... e6 {[%clk 0:11:59.1]} 2. c4 {[%clk 0:12:04.7]}
2... d5 {[%clk 0:12:00.1]} 3. Nc3 {[%clk 0:11:58.6]} 3... Bb4 {[%clk 0:12:00.8]}
4. Nf3 {[%clk 0:11:56]} 4... Bxc3+ {[%clk 0:12:00.4]} 5. bxc3 {[%clk 0:11:57]}
5... Nf6 {[%clk 0:11:56.6]} 6. cxd5 {[%clk 0:11:54.3]} 6... Nxd5 {[%clk
0:11:57.9]} 7. Qc2 {[%clk 0:11:51.7]} 7... Nf6 {[%clk 0:11:54]} 8. e4 {[%clk
0:11:52.3]} 8... Nfd7 {[%clk 0:11:42.2]} 9. Bd3 {[%clk 0:11:50.5]} 9... a6
{[%clk 0:11:33.8]} 10. O-O {[%clk 0:11:51.2]} 10... h6 {[%clk 0:11:17.7]} 11.
Re1 {[%clk 0:11:34.5]} 11... c6 {[%clk 0:11:18.7]} 12. d5 {[%clk 0:11:32.7]}
12... Nc5 {[%clk 0:11:17.9]} 13. Bc4 {[%clk 0:11:02.8]} 13... b5 {[%clk
0:11:06.1]} 14. Bb3 {[%clk 0:10:40.6]} 14... Nxb3 {[%clk 0:11:05.3]} 15. axb3
{[%clk 0:10:42.6]} 15... O-O {[%clk 0:10:53.4]} 16. Ba3 {[%clk 0:10:32.4]} 16...
Re8 {[%clk 0:10:53.9]} 17. Rad1 {[%clk 0:10:33.9]} 17... exd5 {[%clk 0:10:51.5]}
18. exd5 {[%clk 0:10:33]} 18... Rxe1+ {[%clk 0:10:50.3]} 19. Rxe1 {[%clk
0:10:31.6]} 19... g6 {[%clk 0:10:51.6]} 20. Be7 {[%clk 0:09:38]} 20... Qd7
{[%clk 0:10:44.4]} 21. d6 {[%clk 0:09:31.2]} 21... Qf5 {[%clk 0:10:39.1]} 22.
Qe2 {[%clk 0:09:02.1]} 22... Nd7 {[%clk 0:10:25.3]} 23. Nd4 {[%clk 0:08:36.5]}
23... Qd5 {[%clk 0:10:14.4]} 24. Qe3 {[%clk 0:07:07.5]} 24... Kg7 {[%clk
0:10:12]} 25. Nf3 {[%clk 0:06:10.2]} 25... Bb7 {[%clk 0:09:50.2]} 26. Ne5 {[%clk
0:04:05.2]} 26... Qxe5 {[%clk 0:09:40.7]} 27. Qxe5+ {[%clk 0:04:05.7]} 27...
Nxe5 {[%clk 0:09:41.8]} 28. Rxe5 {[%clk 0:04:07.1]} 28... Bc8 {[%clk 0:09:39.6]}
29. Rc5 {[%clk 0:03:52.2]} 29... Bd7 {[%clk 0:09:40.6]} 30. f3 {[%clk
0:03:48.4]} 30... a5 {[%clk 0:09:42.5]} 31. Kf2 {[%clk 0:03:46.9]} 31... a4
{[%clk 0:09:44.3]} 32. bxa4 {[%clk 0:03:47.8]} 32... Rxa4 {[%clk 0:09:45.1]} 33.
Ke3 {[%clk 0:03:18.1]} 33... f5 {[%clk 0:09:33.6]} 34. h3 {[%clk 0:02:30.1]}
34... Kf7 {[%clk 0:09:29.3]} 35. g4 {[%clk 0:02:22.8]} 35... f4+ {[%clk
0:09:28.6]} 36. Kd3 {[%clk 0:02:20.4]} 36... g5 {[%clk 0:09:28.8]} 37. Re5
{[%clk 0:02:19.7]} 37... Be6 {[%clk 0:09:28.7]} 38. Re4 {[%clk 0:02:05.5]} 38...
Rxe4 {[%clk 0:09:11.5]} 39. Kxe4 {[%clk 0:02:06.1]} 39... Bd7 {[%clk 0:09:11.9]}
40. Kd4 {[%clk 0:01:57.3]} 40... Ke6 {[%clk 0:09:12.8]} 41. Ke4 {[%clk
0:01:53.6]} 41... Kf7 {[%clk 0:09:09.4]} 42. Kd4 {[%clk 0:01:50]} 42... Ke6
{[%clk 0:09:10.6]} 43. Kc5 {[%clk 0:01:47.3]} 43... Ke5 {[%clk 0:09:08.6]} 44.
c4 {[%clk 0:01:48.1]} 44... bxc4 {[%clk 0:08:57.1]} 45. Kxc4 {[%clk 0:01:50]}
45... Be6+ {[%clk 0:08:57.3]} 46. Kc5 {[%clk 0:01:50.5]} 46... Bd7 {[%clk
0:08:57.9]} 47. Kb6 {[%clk 0:01:52]} 47... Kd4 {[%clk 0:08:57.9]} 48. Kc7 {[%clk
0:01:46.9]} 48... Be6 {[%clk 0:08:52.4]} 49. Kxc6 {[%clk 0:01:45.7]} 49... Ke3
{[%clk 0:08:53.4]} 50. d7 {[%clk 0:01:32]} 50... Bxd7+ {[%clk 0:08:52.4]} 51.
Kxd7 {[%clk 0:01:33.6]} 51... Kxf3 {[%clk 0:08:54.4]} 52. Ke6 {[%clk 0:01:33.5]}
52... Ke3 {[%clk 0:08:56.4]} 53. Kf5 {[%clk 0:01:30.1]} 53... f3 {[%clk
0:08:58.3]} 54. Bc5+ {[%clk 0:01:30.1]} 54... Kd3 {[%clk 0:08:58.2]} 55. Kg6
{[%clk 0:01:31.7]} 55... Ke2 {[%clk 0:09:00.1]} 56. Kxh6 {[%clk 0:01:32.8]}
56... f2 {[%clk 0:09:02.2]} 57. Bxf2 {[%clk 0:01:33.4]} 57... Kxf2 {[%clk
0:09:04.1]} 58. Kxg5 {[%clk 0:01:35]} 58... Kf3 {[%clk 0:09:06.2]} 59. h4 {[%clk
0:01:36.9]} 1-0

[Event "Rapid della Domenica"]
[Site "Chess.com"]
[Date "2020.06.14"]
[Round "3"]
[White "sergiodone"]
[Black "sirmale49"]
[Result "1-0"]
[WhiteElo "1509"]
[BlackElo "1389"]
[TimeControl "720+3"]
[EndTime "7:10:42 PDT"]
[Termination "sergiodone ha vinto per abbandono"]

1. e4 {[%clk 0:11:57.1]} 1... d5 {[%clk 0:11:59.8]} 2. exd5 {[%clk 0:11:56.7]}
2... Qxd5 {[%clk 0:12:01]} 3. c4 {[%clk 0:11:49.2]} 3... Qd6 {[%clk 0:11:45.3]}
4. d4 {[%clk 0:11:49.3]} 4... Nc6 {[%clk 0:11:33.8]} 5. Ne2 {[%clk 0:11:26.8]}
5... e6 {[%clk 0:11:22.2]} 6. Nbc3 {[%clk 0:11:25.4]} 6... Nf6 {[%clk
0:11:13.4]} 7. g3 {[%clk 0:11:26.5]} 7... Be7 {[%clk 0:11:01.2]} 8. Bg2 {[%clk
0:11:28]} 8... O-O {[%clk 0:10:59.7]} 9. O-O {[%clk 0:11:29.4]} 9... e5 {[%clk
0:10:22.6]} 10. Nb5 {[%clk 0:11:22.5]} 10... Qd7 {[%clk 0:10:14.5]} 11. d5
{[%clk 0:11:23.7]} 11... Nb8 {[%clk 0:09:47.5]} 12. Bg5 {[%clk 0:11:19.1]} 12...
h6 {[%clk 0:09:44.3]} 13. Bxf6 {[%clk 0:11:20.5]} 13... Bxf6 {[%clk 0:09:41.9]}
14. Rb1 {[%clk 0:11:17.7]} 14... a6 {[%clk 0:09:43.4]} 15. Nbc3 {[%clk
0:11:12.7]} 15... Re8 {[%clk 0:09:32.2]} 16. Ne4 {[%clk 0:11:12.9]} 16... c6
{[%clk 0:08:51.7]} 17. Nxf6+ {[%clk 0:11:11.2]} 17... gxf6 {[%clk 0:08:50.7]}
18. Nc3 {[%clk 0:11:10.8]} 18... Rd8 {[%clk 0:08:31.3]} 19. Qh5 {[%clk
0:11:09.4]} 19... Kg7 {[%clk 0:08:24.4]} 20. Qh4 {[%clk 0:10:59.8]} 20... Qf5
{[%clk 0:08:12.6]} 21. f4 {[%clk 0:09:57.3]} 21... cxd5 {[%clk 0:07:50.3]} 22.
Nxd5 {[%clk 0:09:52.4]} 22... Rd7 {[%clk 0:06:45.4]} 23. fxe5 {[%clk 0:09:53.9]}
23... Qxe5 {[%clk 0:06:30.5]} 24. Nxf6 {[%clk 0:09:46.8]} 24... Qd4+ {[%clk
0:06:15.3]} 25. Qxd4 {[%clk 0:09:42.6]} 25... Rxd4 {[%clk 0:06:14.7]} 26. b3
{[%clk 0:09:28.2]} 26... Be6 {[%clk 0:06:06]} 27. Nh5+ {[%clk 0:09:22.9]} 27...
Kf8 {[%clk 0:05:45.9]} 28. Bxb7 {[%clk 0:09:23.5]} 28... Ra7 {[%clk 0:05:44.4]}
29. Bg2 {[%clk 0:09:20.6]} 29... Nd7 {[%clk 0:05:37.6]} 30. Nf4 {[%clk
0:09:21.9]} 30... Bf5 {[%clk 0:05:27.4]} 31. Rbd1 {[%clk 0:09:09.3]} 31... Rxd1
{[%clk 0:05:23.4]} 32. Rxd1 {[%clk 0:09:10.4]} 32... Bg4 {[%clk 0:05:13.7]} 33.
Rd6 {[%clk 0:09:11.2]} 33... h5 {[%clk 0:05:02.7]} 34. Nd5 {[%clk 0:08:53.7]}
34... Ne5 {[%clk 0:04:48.2]} 35. Nf6 {[%clk 0:08:44.4]} 35... Ke7 {[%clk
0:04:26]} 36. Rb6 {[%clk 0:08:38.1]} 36... Nd3 {[%clk 0:04:04.2]} 37. Nxg4
{[%clk 0:08:09.2]} 37... hxg4 {[%clk 0:04:03.6]} 38. Be4 {[%clk 0:08:10.2]}
38... Nc5 {[%clk 0:03:41.7]} 39. Bf5 {[%clk 0:08:03.4]} 39... Nd7 {[%clk
0:03:27.4]} 40. Bxd7 {[%clk 0:07:38.4]} 40... Kxd7 {[%clk 0:03:26.9]} 41. Kf2
{[%clk 0:07:39.3]} 41... Kc7 {[%clk 0:03:07.3]} 42. Rf6 {[%clk 0:07:40]} 42...
Kd8 {[%clk 0:03:06.6]} 43. Rf4 {[%clk 0:07:39.5]} 43... Rd7 {[%clk 0:03:02.2]}
44. Ke2 {[%clk 0:07:40]} 44... Re7+ {[%clk 0:03:00.3]} 45. Kd2 {[%clk
0:07:37.3]} 45... Rd7+ {[%clk 0:03:00.8]} 46. Kc2 {[%clk 0:07:36.5]} 46... Re7
{[%clk 0:03:01.2]} 47. Rxg4 {[%clk 0:07:37.4]} 47... Re2+ {[%clk 0:03:02.1]} 48.
Kc3 {[%clk 0:07:37.6]} 48... Rxa2 {[%clk 0:02:54.7]} 49. h4 {[%clk 0:07:37.7]}
49... Ra1 {[%clk 0:02:54.7]} 50. Kb2 {[%clk 0:07:26.9]} 50... Rh1 {[%clk
0:02:54.3]} 51. Ka3 {[%clk 0:07:22.2]} 51... Ke7 {[%clk 0:02:42.2]} 52. Rg5
{[%clk 0:07:21.7]} 52... Rg1 {[%clk 0:02:32.7]} 53. Kb4 {[%clk 0:07:22.5]} 53...
Kf6 {[%clk 0:02:29.2]} 54. c5 {[%clk 0:07:20.4]} 54... Ke6 {[%clk 0:02:24.6]}
55. Ka5 {[%clk 0:07:02.6]} 55... Ra1+ {[%clk 0:02:23.1]} 56. Kb6 {[%clk
0:07:03.3]} 56... f6 {[%clk 0:02:20.4]} 57. Rg8 {[%clk 0:06:58.6]} 57... Kf7
{[%clk 0:02:08.8]} 58. Rd8 {[%clk 0:06:50.8]} 58... Rg1 {[%clk 0:02:06.5]} 59.
Rd3 {[%clk 0:06:51.4]} 59... Ra1 {[%clk 0:01:55.6]} 60. b4 {[%clk 0:06:50.6]}
60... Rb1 {[%clk 0:01:54]} 61. Ka5 {[%clk 0:06:47.8]} 61... Ra1+ {[%clk
0:01:50.1]} 62. Kb6 {[%clk 0:06:49.2]} 62... Rb1 {[%clk 0:01:51.3]} 63. Kxa6
{[%clk 0:06:50.8]} 63... Rxb4 {[%clk 0:01:50.8]} 64. Ka5 {[%clk 0:06:48.7]}
64... Rb1 {[%clk 0:01:51.7]} 65. c6 {[%clk 0:06:46.3]} 65... Rc1 {[%clk
0:01:46.4]} 66. Kb6 {[%clk 0:06:46.6]} 66... Rb1+ {[%clk 0:01:47.7]} 67. Kc7
{[%clk 0:06:48.2]} 67... Ke7 {[%clk 0:01:39.4]} 68. h5 {[%clk 0:06:45.9]} 68...
Rh1 {[%clk 0:01:33.7]} 69. g4 {[%clk 0:06:45.7]} 69... Rg1 {[%clk 0:01:24]} 70.
Rd4 {[%clk 0:06:46.5]} 70... Ra1 {[%clk 0:01:15.9]} 71. h6 {[%clk 0:06:44.4]}
71... Rh1 {[%clk 0:01:12.6]} 72. h7 {[%clk 0:06:45.7]} 72... Rh6 {[%clk
0:01:02.3]} 73. Rd7+ {[%clk 0:06:46.8]} 73... Ke6 {[%clk 0:01:00.5]} 74. Kb7
{[%clk 0:06:43.7]} 74... f5 {[%clk 0:00:43.5]} 75. gxf5+ {[%clk 0:06:43.5]}
75... Kxf5 {[%clk 0:00:44.7]} 76. Rg7 {[%clk 0:06:44.9]} 76... Rh1 {[%clk
0:00:39.3]} 77. c7 {[%clk 0:06:41.3]} 77... Rb1+ {[%clk 0:00:38.8]} 78. Ka6
{[%clk 0:06:40.7]} 78... Ra1+ {[%clk 0:00:40]} 79. Kb5 {[%clk 0:06:41.6]} 79...
Rb1+ {[%clk 0:00:38.5]} 80. Kc5 {[%clk 0:06:40.9]} 80... Rc1+ {[%clk 0:00:38.7]}
81. Kd4 {[%clk 0:06:42.4]} 81... Rd1+ {[%clk 0:00:37.3]} 82. Ke3 {[%clk
0:06:43.6]} 1-0

[Event "Rapid della Domenica"]
[Site "Chess.com"]
[Date "2020.06.14"]
[Round "4"]
[White "SanSecondoPR"]
[Black "riccardocanossa"]
[Result "1-0"]
[WhiteElo "1343"]
[BlackElo "1401"]
[TimeControl "720+3"]
[EndTime "7:14:34 PDT"]
[Termination "SanSecondoPR ha vinto per abbandono"]

1. e4 {[%clk 0:12:02.9]} 1... e5 {[%clk 0:11:56.6]} 2. d4 {[%clk 0:12:02.9]}
2... exd4 {[%clk 0:11:55.2]} 3. c3 {[%clk 0:12:03]} 3... dxc3 {[%clk 0:11:50.1]}
4. Bc4 {[%clk 0:12:02.4]} 4... cxb2 {[%clk 0:11:37.3]} 5. Bxb2 {[%clk
0:12:01.9]} 5... Nc6 {[%clk 0:11:33.5]} 6. Nf3 {[%clk 0:11:59.7]} 6... d6 {[%clk
0:11:07.7]} 7. O-O {[%clk 0:11:57]} 7... Nf6 {[%clk 0:10:59.5]} 8. Ng5 {[%clk
0:11:46.8]} 8... Qd7 {[%clk 0:10:21.4]} 9. Bxf7+ {[%clk 0:11:34.3]} 9... Kd8
{[%clk 0:10:15.9]} 10. Bb3 {[%clk 0:11:33.3]} 10... h6 {[%clk 0:10:14.9]} 11.
Nf7+ {[%clk 0:11:31.7]} 11... Ke8 {[%clk 0:10:13.6]} 12. Nxh8 {[%clk 0:11:31.9]}
1-0

[Event "Rapid della Domenica"]
[Site "Chess.com"]
[Date "2020.06.14"]
[Round "4"]
[White "ottovolante"]
[Black "sergiodone"]
[Result "0-1"]
[WhiteElo "997"]
[BlackElo "1510"]
[TimeControl "720+3"]
[EndTime "7:21:44 PDT"]
[Termination "sergiodone ha vinto per scaccomatto"]

1. e4 {[%clk 0:12:02.9]} 1... c5 {[%clk 0:11:59.1]} 2. e5 {[%clk 0:12:02.1]}
2... d5 {[%clk 0:11:47.8]} 3. Bb5+ {[%clk 0:11:57.1]} 3... Bd7 {[%clk
0:11:48.5]} 4. Bxd7+ {[%clk 0:11:58.4]} 4... Nxd7 {[%clk 0:11:49.6]} 5. Qf3
{[%clk 0:11:59.9]} 5... e6 {[%clk 0:11:51.1]} 6. Qe2 {[%clk 0:11:48.9]} 6... a6
{[%clk 0:11:49.2]} 7. Nf3 {[%clk 0:11:49.3]} 7... Be7 {[%clk 0:11:50.2]} 8. O-O
{[%clk 0:11:51.1]} 8... Qc7 {[%clk 0:11:50.8]} 9. Re1 {[%clk 0:11:46.3]} 9... h5
{[%clk 0:11:49.7]} 10. d3 {[%clk 0:11:48.2]} 10... Nh6 {[%clk 0:11:15]} 11. Bxh6
{[%clk 0:11:48.1]} 11... Rxh6 {[%clk 0:11:15.1]} 12. Nbd2 {[%clk 0:11:43.8]}
12... h4 {[%clk 0:11:16.6]} 13. h3 {[%clk 0:11:41.2]} 13... g5 {[%clk
0:11:10.5]} 14. Nh2 {[%clk 0:11:42.7]} 14... Rh8 {[%clk 0:11:10.5]} 15. Ng4
{[%clk 0:11:39.1]} 15... b5 {[%clk 0:11:00.5]} 16. c3 {[%clk 0:11:21.4]} 16...
Qc6 {[%clk 0:11:01.9]} 17. Qf3 {[%clk 0:11:14.6]} 17... Nf8 {[%clk 0:10:21]} 18.
b3 {[%clk 0:11:05.7]} 18... Ng6 {[%clk 0:10:18.8]} 19. c4 {[%clk 0:10:50.2]}
19... Qd7 {[%clk 0:09:58.5]} 20. cxd5 {[%clk 0:10:48.9]} 20... Qxd5 {[%clk
0:10:00]} 21. Qxd5 {[%clk 0:10:49.7]} 21... exd5 {[%clk 0:10:00.9]} 22. Nf3
{[%clk 0:10:44.9]} 22... Nf4 {[%clk 0:09:50.5]} 23. d4 {[%clk 0:10:38.6]} 23...
c4 {[%clk 0:09:41.4]} 24. bxc4 {[%clk 0:10:17.9]} 24... bxc4 {[%clk 0:09:41.7]}
25. Nd2 {[%clk 0:10:06.3]} 25... Kd7 {[%clk 0:09:32.9]} 26. a3 {[%clk
0:10:07.3]} 26... Rab8 {[%clk 0:09:30.4]} 27. Rab1 {[%clk 0:10:05.6]} 27... a5
{[%clk 0:09:25.1]} 28. a4 {[%clk 0:10:02.4]} 28... Rb4 {[%clk 0:09:20.7]} 29.
Nf6+ {[%clk 0:10:03.7]} 29... Ke6 {[%clk 0:09:12.3]} 30. Nf3 {[%clk 0:09:47]}
30... Bxf6 {[%clk 0:08:51.8]} 31. exf6+ {[%clk 0:09:42.7]} 31... Kxf6 {[%clk
0:08:52.7]} 32. Rxb4 {[%clk 0:09:26.8]} 32... axb4 {[%clk 0:08:53.3]} 33. Rb1
{[%clk 0:09:26.2]} 33... b3 {[%clk 0:08:54.1]} 34. Nd2 {[%clk 0:09:26.9]} 34...
Ra8 {[%clk 0:08:49.6]} 35. Kh2 {[%clk 0:09:08.1]} 35... Rxa4 {[%clk 0:08:49.7]}
36. g3 {[%clk 0:09:09.1]} 36... Nd3 {[%clk 0:08:44.1]} 37. gxh4 {[%clk
0:09:09.9]} 37... gxh4 {[%clk 0:08:44.5]} 38. f3 {[%clk 0:09:08.1]} 38... Ra2
{[%clk 0:08:45.9]} 39. Kg1 {[%clk 0:09:00.8]} 39... Rxd2 {[%clk 0:08:46]} 40.
Rxb3 {[%clk 0:08:59.7]} 40... cxb3 {[%clk 0:08:46.4]} 41. f4 {[%clk 0:09:00.6]}
41... b2 {[%clk 0:08:47.5]} 42. f5 {[%clk 0:09:00.1]} 42... b1=Q# {[%clk
0:08:48.2]} 0-1

[Event "Rapid della Domenica"]
[Site "Chess.com"]
[Date "2020.06.14"]
[Round "4"]
[White "fausto2p"]
[Black "pedrak"]
[Result "0-1"]
[WhiteElo "1261"]
[BlackElo "1710"]
[TimeControl "720+3"]
[EndTime "7:25:39 PDT"]
[Termination "pedrak ha vinto per abbandono"]

1. d4 {[%clk 0:12:02.9]} 1... Nf6 {[%clk 0:11:54.7]} 2. c4 {[%clk 0:12:03.9]}
2... e6 {[%clk 0:11:55]} 3. Nc3 {[%clk 0:12:03.6]} 3... Bb4 {[%clk 0:11:55.8]}
4. e3 {[%clk 0:11:59.2]} 4... O-O {[%clk 0:11:55.2]} 5. Nf3 {[%clk 0:11:44]}
5... b6 {[%clk 0:11:38.7]} 6. Qc2 {[%clk 0:11:39]} 6... Bb7 {[%clk 0:11:18.7]}
7. Be2 {[%clk 0:11:39.9]} 7... d6 {[%clk 0:11:11.9]} 8. O-O {[%clk 0:11:38.5]}
8... Nbd7 {[%clk 0:11:12.8]} 9. a3 {[%clk 0:11:39.3]} 9... Bxc3 {[%clk
0:11:14.2]} 10. Qxc3 {[%clk 0:11:33.7]} 10... Re8 {[%clk 0:11:12.1]} 11. b4
{[%clk 0:11:16.9]} 11... Ne4 {[%clk 0:10:59.5]} 12. Qc2 {[%clk 0:11:12.6]} 12...
f5 {[%clk 0:11:00.3]} 13. Bb2 {[%clk 0:10:55.1]} 13... g5 {[%clk 0:10:51.5]} 14.
Bd3 {[%clk 0:10:36.2]} 14... Qf6 {[%clk 0:10:42.9]} 15. Bxe4 {[%clk 0:10:28.9]}
15... Bxe4 {[%clk 0:10:43.5]} 16. Qe2 {[%clk 0:10:22.9]} 16... Qg6 {[%clk
0:10:43.4]} 17. h3 {[%clk 0:09:45.4]} 17... g4 {[%clk 0:10:23.7]} 18. hxg4
{[%clk 0:09:43.8]} 18... Qxg4 {[%clk 0:10:23.5]} 19. Rad1 {[%clk 0:08:29.7]}
19... Kf7 {[%clk 0:10:13.1]} 20. c5 {[%clk 0:08:10.3]} 20... Rg8 {[%clk
0:10:12.6]} 21. Ne5+ {[%clk 0:06:10]} 21... Nxe5 {[%clk 0:10:12.8]} 22. Qxg4
{[%clk 0:06:10.5]} 22... Nxg4 {[%clk 0:10:13.9]} 23. f3 {[%clk 0:06:10.2]} 23...
Nxe3 {[%clk 0:10:15.2]} 24. fxe4 {[%clk 0:06:01.6]} 24... Nxd1 {[%clk
0:10:12.5]} 25. Rxd1 {[%clk 0:06:02]} 25... fxe4 {[%clk 0:10:13.4]} 26. cxd6
{[%clk 0:05:43.9]} 26... cxd6 {[%clk 0:10:13.6]} 27. Rf1+ {[%clk 0:05:41.6]}
27... Ke7 {[%clk 0:10:14]} 28. d5 {[%clk 0:05:36.7]} 28... exd5 {[%clk
0:10:07.1]} 29. Bf6+ {[%clk 0:05:34.4]} 29... Ke6 {[%clk 0:10:07.6]} 30. Bd4
{[%clk 0:05:30.3]} 30... Raf8 {[%clk 0:10:06.7]} 31. Rc1 {[%clk 0:05:20.5]}
31... Kd7 {[%clk 0:09:44.4]} 32. a4 {[%clk 0:05:08.6]} 32... Rf3 {[%clk
0:09:44.9]} 33. a5 {[%clk 0:04:58.2]} 33... Rd3 {[%clk 0:09:45.2]} 34. Bf2
{[%clk 0:04:48.8]} 34... e3 {[%clk 0:09:46.4]} 35. Bh4 {[%clk 0:04:32.6]} 35...
Rd2 {[%clk 0:09:44]} 36. g3 {[%clk 0:04:20.6]} 36... e2 {[%clk 0:09:44.3]} 37.
Kf2 {[%clk 0:04:12]} 37... Rd1 {[%clk 0:09:45.2]} 0-1